[Event "Tata Steel-A 80th"]
[Site "Wijk aan Zee"]
[Date "2018.01.28"]
[Round "13"]
[White "Adhiban, Baskaran"]
[Black "Kramnik, Vladimir"]
[Result "0-1"]
[ECO "C26"]
[WhiteElo "2655"]
[BlackElo "2787"]
[Annotator "Fernandez,D"]
[PlyCount "110"]
[EventDate "2018.01.13"]
[EventType "tourn"]
[EventRounds "13"]
[EventCountry "NED"]
[EventCategory "20"]
[SourceTitle "CBM 183"]
[Source "ChessBase"]
[SourceDate "2018.03.14"]
[SourceVersion "1"]
[SourceVersionDate "2018.03.14"]
[SourceQuality "1"]
[TimeControl "40/6000+30:20/3000+30:900+30"]

1. e4 {[%emt 0:00:00]} e5 {[%emt 0:00:05]} 2. Nc3 {[%emt 0:00:00]} Nf6 {
[%emt 0:00:07]} 3. g3 {[%emt 0:00:00]} Bc5 {[%emt 0:00:16]} 4. Bg2 {[%emt 0:00:
00]} c6 {[%emt 0:00:40]} 5. Nge2 {[%emt 0:00:00]} (5. Nf3 {looks a bit
inconsistent, but may be White's best attempt at trying to use every wrinkle
in the position.} d5 6. Nxe5 (6. d3 d4 7. Ne2 Nbd7 8. O-O O-O 9. h3 {is just a
standard King's Indian Attack}) 6... dxe4 7. d3 $5 Bxf2+ 8. Kxf2 Qd4+ 9. Kf1 $5
({After} 9. Be3 Qxe5 10. h3 (10. Bf4 $11 {is just a repetition}) 10... exd3 11.
Qxd3 O-O 12. Rhe1 $44 {White has full compensation for the missing material.})
9... Qxe5 10. Bf4 Qd4 11. Nxe4 O-O $132) 5... d5 {[%emt 0:02:34]} 6. exd5 {
[%emt 0:00:00]} cxd5 {[%emt 0:00:06]} 7. d4 {[%emt 0:00:04]} exd4 {[%emt 0:00:
06]} 8. Nxd4 {[%emt 0:00:05]} O-O {[%emt 0:02:57]} 9. O-O {[%emt 0:00:12]} Bg4
{[%emt 0:00:12]} 10. Nde2 {[%emt 0:00:07] A standard-looking move, unleashing
some kind of pressure against the d5-pawn, but here the pawn is free to
advance, which was what White should have tried to avoid.} (10. Qd3 Bxd4 11.
Qxd4 Nc6 12. Qc5 d4 13. Ne4 Nxe4 14. Bxe4 Re8 $11 {at least gives White the
bishop pair in exchange for Black's dynamism.}) 10... Qc8 {[%emt 0:01:13]
Perceptively played.} ({After the immediate} 10... d4 {there is a slight
problem with} 11. h3 $1 (11. Na4 Qe8 12. Nxc5 Bxe2 13. Qe1 Nc6 $44) 11... Bxh3
12. Bxh3 dxc3 13. Qxd8 Rxd8 14. Nxc3 Nc6 15. Bf4 $14 {Here Kramnik would have
risked losing the exact same type of game which he won yesterday.}) 11. Bg5 {
[%emt 0:01:05] On this move and indeed the next few Adhiban plays extremely
well.} (11. Be3 $6 d4 $5 12. Bxd4 Rd8 13. Qd3 Nc6 14. Bxc6 Qxc6 $11 {is
unpleasant for White, but playable if he jumps through a few more hoops.})
11... d4 {[%emt 0:04:58]} 12. Na4 {[%emt 0:11:04]} Be7 {[%emt 0:02:30]} 13. Qd3
{[%emt 0:06:14]} h6 {[%emt 0:05:18]} 14. Bxf6 {[%emt 0:10:58]} Bxf6 {[%emt 0:
00:07]} 15. Nf4 {[%emt 0:00:17]} (15. Nxd4 $6 Rd8 16. Qb3 $1 $11 {clings to
equality tactically, but this is hard to calculate.}) 15... Nc6 {[%emt 0:15:38]
} (15... Nd7 $11 {was marginally more accurate.}) 16. Nd5 {[%emt 0:11:14]} Be5
{[%emt 0:06:08]} 17. Qb5 {[%emt 0:12:13]} Bd6 {[%emt 0:06:33]} 18. Nc5 {
[%emt 0:02:51]} Bxc5 {[%emt 0:16:48]} 19. Qxc5 {[%emt 0:00:05] Suddenly the
bishop pair is gone and Black should think about equality.} Re8 {[%emt 0:00:17]
} (19... Bh3 {should have been almost an impulse for a Catalan player like
Vladimir Kramnik!}) 20. b4 $14 {[%emt 0:12:23]} Kh8 {[%emt 0:06:22]} 21. Rfe1 {
[%emt 0:04:00]} Qf5 {[%emt 0:08:48]} 22. Nc7 {[%emt 0:05:12]} Rxe1+ {[%emt 0:
02:44]} 23. Rxe1 {[%emt 0:00:02]} Rd8 {[%emt 0:06:28]} (23... Rc8 {prevents
White's strong next move because} 24. Ne8 Qxc5 25. bxc5 Nb4 $132 {gives Black
too much play.}) 24. Ne8 $1 {[%emt 0:05:53]} (24. Re8+ Rxe8 25. Nxe8 Kg8 26.
Nd6 Qxc5 27. bxc5 $14 {is also good for White, but a bit less convincing.})
24... Qxc5 {[%emt 0:02:14]} 25. bxc5 {[%emt 0:00:02]} Be6 {[%emt 0:04:48]} 26.
Nd6 {[%emt 0:00:06]} Rd7 {[%emt 0:00:19]} 27. a3 {[%emt 0:04:54] The first
hesitation.} (27. Rb1 Bxa2 28. Rxb7 Rxb7 29. Nxb7 $16 {would have left Black
in a lot of trouble.}) 27... Rc7 {[%emt 0:01:56]} 28. Nb5 {[%emt 0:04:39]} Rc8
{[%emt 0:00:56]} 29. Nd6 {[%emt 0:00:08]} Rc7 {[%emt 0:00:04]} 30. f4 {[%emt 0:
01:37]} g6 {[%emt 0:01:16]} 31. Nb5 {[%emt 0:00:05] The second hesitation,
seemingly looking for another move repetition.} Rd7 {[%emt 0:02:41]} 32. Nd6 {
[%emt 0:00:20]} Na5 {[%emt 0:02:35] But Kramnik is mentally tough enough to
not take it, even though his position is far from being better.} 33. Rb1 {
[%emt 0:04:20]} (33. Nxb7 Rxb7 34. Bxb7 Nxb7 35. c6 Nd6 {might have occupied a
fair bit of White's time, and while the position isn't technically winning as
such, Black certainly faces more challenges after} 36. Rd1 $14 {because he
will be unable to hold the d-pawn.}) 33... Rc7 {[%emt 0:01:13]} 34. Rb5 {
[%emt 0:01:48]} b6 $11 {[%emt 0:01:00] Just like that, the advantage is gone.}
35. Rxa5 $2 {[%emt 0:00:48] Imaginative, but not correct.} ({It was a good
time for} 35. cxb6 axb6 36. Rb2 Nc4 37. Nxc4 Rxc4 38. Be4 f5 39. Bd3 (39. Rxb6
fxe4 40. Rxe6 e3 $36) 39... Rc6 40. Rb4 Rd6 $11) 35... bxa5 {[%emt 0:00:16]}
36. c6 {[%emt 0:00:02]} a6 {[%emt 0:01:58] The point is that between this move
and ...Re7, Black is able to both discourage Nb5 ideas and hold off the White
king.} 37. Kf2 {[%emt 0:00:20]} (37. a4 Re7 38. Nb5 axb5 39. axb5 a4 $19) 37...
Re7 {[%emt 0:00:23]} 38. a4 {[%emt 0:04:52]} Kg8 {[%emt 0:01:11]} 39. Ne4 {
[%emt 0:00:36]} (39. Nb5 axb5 40. axb5 a4 41. b6 Bc8 42. b7 Bxb7 43. cxb7 Re8
44. Bc6 Rb8 45. Bxa4 Rxb7 $19) 39... Kf8 {[%emt 0:02:36]} 40. Nd6 {[%emt 0:00:
00]} Bg4 {[%emt 0:02:18]} (40... Bf5 {was marginally faster.}) 41. Be4 {
[%emt 0:12:53]} h5 {[%emt 0:08:35]} 42. h4 {[%emt 0:04:45]} f6 {[%emt 0:09:40]
Asking for a move from White.} 43. Bxg6 {[%emt 0:08:55]} (43. Bd3 Rc7 44. Be4
Ke7 45. Nc4 f5 46. Bg2 Bd1 $19) 43... Re2+ {[%emt 0:01:37]} 44. Kf1 {[%emt 0:
00:14]} Re6 {[%emt 0:00:32]} 45. Nb7 {[%emt 0:06:33]} Rxc6 {[%emt 0:01:18]} 46.
Nxa5 {[%emt 0:02:01]} Rc3 $19 {[%emt 0:01:10] The front c-pawn being dead, the
game is now over. A curious feature of this tournament, first in variations
and now in an actual game, seems to be nearly-trapped White knights on a5.} 47.
Nb3 {[%emt 0:00:14]} Rc4 {[%emt 0:01:54]} 48. Bd3 {[%emt 0:01:35]} Rxa4 {
[%emt 0:00:08]} 49. Kf2 {[%emt 0:00:33]} a5 {[%emt 0:00:22]} 50. Ke1 {[%emt 0:
06:46]} Be6 {[%emt 0:02:28]} 51. Nc5 {[%emt 0:00:11]} Ra1+ {[%emt 0:00:06]} 52.
Kf2 {[%emt 0:00:11]} Bf7 {[%emt 0:00:56]} 53. Kf3 {[%emt 0:01:52]} a4 {[%emt 0:
00:29]} 54. Ke4 {[%emt 0:00:06]} a3 {[%emt 0:00:17]} 55. Kxd4 {[%emt 0:00:03]}
Rd1 {[%emt 0:00:11]} 0-1

[Event "Tata Steel-A 80th"]
[Site "Wijk aan Zee"]
[Date "2018.01.28"]
[Round "13"]
[White "Caruana, Fabiano"]
[Black "Svidler, Peter"]
[Result "1/2-1/2"]
[ECO "C89"]
[WhiteElo "2811"]
[BlackElo "2768"]
[PlyCount "59"]
[EventDate "2018.01.13"]
[EventType "tourn"]
[EventRounds "13"]
[EventCountry "NED"]
[EventCategory "20"]
[SourceTitle "CBM 183"]
[Source "ChessBase"]
[SourceDate "2018.03.14"]
[SourceVersion "1"]
[SourceVersionDate "2018.03.14"]
[SourceQuality "1"]
[TimeControl "40/6000+30:20/3000+30:900+30"]

1. e4 {[%emt 0:00:00]} e5 {[%emt 0:00:09]} 2. Nf3 {[%emt 0:00:00]} Nc6 {
[%emt 0:00:05]} 3. Bb5 {[%emt 0:00:00]} a6 {[%emt 0:00:07]} 4. Ba4 {[%emt 0:00:
00]} Nf6 {[%emt 0:00:07]} 5. O-O {[%emt 0:00:00]} Be7 {[%emt 0:00:10]} 6. Re1 {
[%emt 0:00:12]} b5 {[%emt 0:00:10]} 7. Bb3 {[%emt 0:00:07]} O-O {[%emt 0:01:03]
} 8. c3 {[%emt 0:01:20]} d5 {[%emt 0:02:45]} 9. exd5 {[%emt 0:00:15]} Nxd5 {
[%emt 0:00:08]} 10. Nxe5 {[%emt 0:00:05]} Nxe5 {[%emt 0:00:09]} 11. Rxe5 {
[%emt 0:00:05]} c6 {[%emt 0:00:06]} 12. d3 {[%emt 0:01:35]} Bd6 {[%emt 0:01:34]
} 13. Re1 {[%emt 0:00:50]} Bf5 {[%emt 0:01:26]} 14. Qf3 {[%emt 0:02:01]} Qh4 {
[%emt 0:05:42]} 15. g3 {[%emt 0:00:20]} Qh3 {[%emt 0:00:08]} 16. Be3 {[%emt 0:
03:00]} Bxd3 {[%emt 0:04:15]} 17. Nd2 {[%emt 0:02:02]} Qf5 {[%emt 0:02:57]} 18.
Bd4 {[%emt 0:01:47]} Rfe8 {[%emt 0:04:11]} 19. a4 {[%emt 0:04:16]} h6 {[%emt 0:
02:06]} 20. Qxf5 {[%emt 0:04:02]} Bxf5 {[%emt 0:00:26]} 21. Nf3 {[%emt 0:00:06]
} Be6 {[%emt 0:09:20]} 22. Be5 {[%emt 0:04:02]} Bc5 {[%emt 0:02:28]} 23. Nd4 {
[%emt 0:02:08]} Bxd4 {[%emt 0:04:50]} 24. Bxd4 {[%emt 0:00:17]} Nf4 {[%emt 0:
00:20]} 25. Bxe6 {[%emt 0:02:03]} Nxe6 {[%emt 0:00:06]} 26. Be3 {[%emt 0:00:05]
} Nc7 {[%emt 0:02:51]} 27. Kg2 {[%emt 0:04:42]} Nd5 {[%emt 0:01:38]} 28. Kf3 {
[%emt 0:03:40]} Nxe3 {[%emt 0:01:30]} 29. Rxe3 {[%emt 0:00:09]} Kf8 {[%emt 0:
04:48]} 30. h4 {[%emt 0:00:48]} 1/2-1/2

[Event "Tata Steel-A 80th"]
[Site "Wijk aan Zee"]
[Date "2018.01.28"]
[Round "13"]
[White "Karjakin, Sergey"]
[Black "Carlsen, Magnus"]
[Result "1/2-1/2"]
[ECO "C88"]
[WhiteElo "2753"]
[BlackElo "2834"]
[Annotator "Fernandez,D"]
[PlyCount "67"]
[EventDate "2018.01.13"]
[EventType "tourn"]
[EventRounds "13"]
[EventCountry "NED"]
[EventCategory "20"]
[SourceTitle "CBM 183"]
[Source "ChessBase"]
[SourceDate "2018.03.14"]
[SourceVersion "1"]
[SourceVersionDate "2018.03.14"]
[SourceQuality "1"]
[TimeControl "40/6000+30:20/3000+30:900+30"]

1. e4 {[%emt 0:00:00]} e5 {[%emt 0:00:10]} 2. Nf3 {[%emt 0:00:00]} Nc6 {
[%emt 0:00:04]} 3. Bb5 {[%emt 0:00:00]} a6 {[%emt 0:00:19]} 4. Ba4 {[%emt 0:00:
00]} Nf6 {[%emt 0:00:05]} 5. O-O {[%emt 0:00:00]} Be7 {[%emt 0:00:08]} 6. Re1 {
[%emt 0:00:00]} b5 {[%emt 0:00:10]} 7. Bb3 {[%emt 0:00:02]} O-O {[%emt 0:00:06]
} 8. a4 {[%emt 0:00:07] No Breyer today.} b4 {[%emt 0:00:05]} (8... Bb7 {
is more popular, but I have never understood the appeal of developing the
bishop to a diagonal that will remain closed, in the case when the Breyeresque
...c5-c4 is still some moves off.} 9. d3 d6 10. Nc3 {is White's point; Black's
queenside pawns will not be permitted to advance abreast. The best he might be
able to do is} Na5 11. Ba2 b4 12. Ne2 c5 13. Ng3 g6 (13... Bc8 14. c3 Rb8 15.
d4 $36 {Duda,J-Najer,E Czech Republic 2017}) 14. h3 {when White appears to
have extra tempi in his kingside attack, compared to most systems with an
early d3.}) (8... Rb8 {is slightly compliant: after} 9. axb5 axb5 10. c3 d6 11.
d4 {Black lacks the usual recourse of ...Na5 in the line} exd4 12. cxd4 Bg4 13.
Be3 {so might have to make do with} d5 14. e5 Ne4 15. h3 Bh5 16. Nc3 $36 {
; furthermore, 13.Nc3!? might be unexpectedly strong in spite of the doubled
f-pawns.}) 9. d4 {[%emt 0:01:17]} (9. a5 d6 10. d3 Be6 11. Bxe6 fxe6 12. Nbd2 {
led to a nice win for Magnus himself in Carlsen,M-Aronian,L Saint Louis 2017;
one wonders where the improvement was?}) (9. d3 d6 10. Nbd2 Na5 11. Ba2 c5 12.
c3 Rb8 {is now fine for Black, who has not wasted time on ...Bb7 unlike in the
8...Bb7 line.}) 9... d6 {[%emt 0:00:07]} 10. dxe5 {[%emt 0:00:05]} Nxe5 {
[%emt 0:00:08]} 11. Nxe5 {[%emt 0:05:48]} (11. Nbd2 Ned7 $5 {was an unusual
method of pressuring e4, but a successful one:} 12. Nd4 Bb7 13. c3 bxc3 14.
bxc3 Nc5 15. Bc2 Re8 16. f3 Nfd7 17. a5 d5 $11 {Nakamura, H-Svidler,P Saint
Louis 2017}) 11... dxe5 {[%emt 0:00:06]} 12. Qe2 {[%emt 0:00:04]} a5 {[%emt 0:
00:49] Possibly still affected by his own experience on the White side,
Carlsen decides to avoid White's a5-ideas.} (12... Bc5 {is of course fine
immediately.}) 13. Nd2 {[%emt 0:10:03]} Bc5 {[%emt 0:01:05]} 14. Nf3 {[%emt 0:
06:46]} Qe7 {[%emt 0:02:23]} 15. Be3 {[%emt 0:12:57]} Ba6 {[%emt 0:19:41]} 16.
Bxc5 {[%emt 0:02:31]} Qxc5 {[%emt 0:00:04]} 17. Qe3 {[%emt 0:00:04]} Qxe3 {
[%emt 0:00:52]} 18. Rxe3 {[%emt 0:00:01]} Rfe8 $11 {[%emt 0:02:35] Initially
this position looked to me to be slightly nicer for White, but this isn't
really the case. In fact, Black may have more ideas in the position, and in
the long term has the better bishop, so it would not surprise me if he was
vaguely thinking about winning here.} 19. c3 {[%emt 0:02:40]} (19. h3 c5 20.
Rd1 c4 21. Ba2 Kf8 $132 {is hard to get enthused about from the White side,
especially if we remember Adhiban-Carlsen from round 2.}) 19... Ng4 {[%emt 0:
01:23]} 20. Ng5 {[%emt 0:06:14] Simplifying quickly lest he end up worse.} Nxe3
{[%emt 0:02:28]} 21. Bxf7+ {[%emt 0:00:14]} Kf8 {[%emt 0:00:06]} 22. Bxe8 {
[%emt 0:00:43]} Rxe8 {[%emt 0:01:06]} 23. fxe3 {[%emt 0:00:07]} bxc3 {[%emt 0:
01:57]} 24. bxc3 {[%emt 0:00:09]} h6 {[%emt 0:00:20]} 25. Nf3 {[%emt 0:00:55]}
Bd3 {[%emt 0:01:30]} 26. Rd1 {[%emt 0:01:54]} Bxe4 {[%emt 0:00:07]} 27. Rd7 {
[%emt 0:00:11] Continuing to force pieces off, because if White plays slowly
the bishop will be superior.} Re7 {[%emt 0:03:06]} 28. Rd8+ {[%emt 0:00:23]} (
28. Rxe7 Kxe7 29. Nxe5 Ke6 30. Nc4 Kd5 31. Nxa5 Bc2 {leads to an odd position
where White is a pawn up but only he is taking risks.}) 28... Kf7 {[%emt 0:00:
43]} 29. Nd2 {[%emt 0:00:41]} Bc6 {[%emt 0:00:19]} 30. Nc4 {[%emt 0:00:38]} Ke6
{[%emt 0:01:41]} 31. Nxa5 {[%emt 0:02:20]} Bxa4 {[%emt 0:00:07]} 32. Nb7 {
[%emt 0:00:59]} Re8 {[%emt 0:03:30]} (32... Bd7 {might be a try if Black is
desperate to play on.} 33. e4 (33. Nc5+ Kd6 34. Ne4+ Kc6 35. Kf2 Be8 $132)
33... Rf7 34. Nc5+ Kd6 35. Nd3 c5 $132 {Objectively this might be nothing for
Black, and so there is no reason to go for it, especially if one has looked at
Anish Giri's game and concluded he is unlikely to win.}) 33. Nc5+ {[%emt 0:00:
14]} Kf6 {[%emt 0:00:28]} 34. Rxe8 $11 {[%emt 0:01:04] Unlike the previous
note, here White gets to play Na6 immediately, and thus seal up the whole
position.} 1/2-1/2